bitfinex/quotes_SOLUSD_20230104
["timestamp","ask_amount","ask_price","bid_price","bid_amount"]
[1672860207864,30.0,13.284,13.273,82.5770699]
[1672860209114,23.13,13.28,13.273,82.5770699]
[1672860209955,56.53,13.279,13.273,82.5770699]
[1672860210159,20.0,13.278,13.273,82.5770699]
[1672860210594,30.0,13.277,13.273,82.5770699]
[1672860210810,20.0,13.276,13.273,82.5770699]
[1672860213953,115.72,13.28,13.274,86.55]
[1672860214167,23.25,13.28,13.274,86.55]
[1672860214486,23.25,13.28,13.273,82.5770699]
[1672860216284,23.25,13.28,13.274,56.55]
[1672860216500,30.0,13.288,13.275,29.89634954]
[1672860216890,16.77638821,13.287,13.275,29.89634954]
[1672860217109,30.0,13.288,13.275,29.89634954]
[1672860217323,46.77638821,13.288,13.274,165.4101]
[1672860217960,30.0,13.288,13.274,165.4101]
[1672860218159,16.77638821,13.288,13.274,165.4101]
[1672860218586,23.13,13.28,13.273,82.5770699]
[1672860219209,56.53,13.279,13.273,82.5770699]
[1672860219725,30.0,13.278,13.273,82.5770699]
[1672860220158,56.53,13.279,13.273,82.5770699]
[1672860226164,16.30456384,13.278,13.273,82.5770699]
[1672860226373,16.30456384,13.278,13.273,8.7711699]
[1672860226589,30.0,13.277,13.273,8.7711699]
[1672860226915,16.30456384,13.276,13.273,8.7711699]
[1672860228164,30.0,13.278,13.273,8.7711699]
[1672860228382,16.30456384,13.276,13.273,8.7711699]
[1672860228901,16.30456384,13.277,13.273,8.7711699]
[1672860230259,115.82,13.28,13.273,8.7711699]
[1672860230459,30.0,13.278,13.273,8.7711699]
[1672860230674,20.0,13.279,13.273,8.7711699]
[1672860230884,36.30456384,13.279,13.273,8.7711699]
[1672860231107,16.30456384,13.278,13.273,6.99e-05]
[1672860231336,30.0,13.277,13.273,6.99e-05]
[1672860231738,16.30456384,13.276,13.273,6.99e-05]
[1672860232991,106.53,13.279,13.273,6.99e-05]
[1672860233204,50.0,13.279,13.273,6.99e-05]
[1672860233431,16.30456384,13.278,13.273,6.99e-05]
[1672860233740,30.0,13.277,13.273,6.99e-05]
[1672860234259,46.30456384,13.277,13.273,6.99e-05]
[1672860234578,108.94186217,13.276,13.273,6.99e-05]
[1672860234894,46.30456384,13.275,13.273,6.99e-05]
[1672860235097,56.55,13.274,13.273,6.99e-05]
[1672860235291,16.30456384,13.274,13.273,6.99e-05]
[1672860236986,111.30638691,13.274,13.273,6.99e-05]
[1672860237829,46.30456384,13.274,13.273,6.99e-05]
[1672860238021,16.30456384,13.274,13.273,6.99e-05]
[1672860238234,30.0,13.276,13.273,6.99e-05]
[1672860238463,46.30456384,13.276,13.273,6.99e-05]
[1672860238655,102.84456384,13.276,13.273,6.99e-05]
[1672860239730,117.7279136,13.276,13.273,6.99e-05]
[1672860240145,30.0,13.274,13.273,6.99e-05]
[1672860240669,99.66133767,13.274,13.273,6.99e-05]
[1672860241074,156.21133767,13.274,13.273,6.99e-05]
[1672860241508,99.66133767,13.274,13.273,6.99e-05]
[1672860241713,46.30456384,13.274,13.273,6.99e-05]
[1672860241936,16.30456384,13.274,13.273,6.99e-05]
[1672860242143,30.0,13.278,13.273,6.99e-05]
[1672860242663,109.87677383,13.281,13.273,6.99e-05]
[1672860242664,56.52,13.281,13.273,6.99e-05]
[1672860242880,23.3,13.28,13.273,6.99e-05]
[1672860243722,20.0,13.279,13.273,6.99e-05]
[1672860245193,46.30456384,13.278,13.273,6.99e-05]
[1672860245377,30.0,13.278,13.273,6.99e-05]
[1672860245594,46.30456384,13.278,13.273,6.99e-05]
[1672860246356,30.0,13.276,13.273,6.99e-05]
[1672860246567,56.54,13.275,13.273,6.99e-05]
[1672860246751,72.84456384,13.275,13.273,6.99e-05]
[1672860247075,16.30456384,13.274,13.273,6.99e-05]
[1672860247289,46.30456384,13.274,13.273,6.99e-05]
[1672860247499,102.85456384,13.274,13.273,6.99e-05]
[1672860247903,130.66798791,13.274,13.273,6.99e-05]
[1672860248336,152.65800434,13.274,13.273,6.99e-05]
[1672860249282,86.55,13.274,13.273,6.99e-05]
[1672860250133,102.85456384,13.274,13.273,6.99e-05]
[1672860250342,16.30456384,13.274,13.273,6.99e-05]
[1672860250548,56.53,13.279,13.273,6.99e-05]
[1672860250764,30.0,13.276,13.273,6.99e-05]
[1672860251389,16.30456384,13.277,13.273,6.99e-05]
[1672860252555,115.54,13.28,13.273,6.99e-05]
[1672860252762,30.0,13.279,13.273,6.99e-05]
[1672860253175,56.53,13.278,13.273,6.99e-05]
[1672860253712,50.0,13.277,13.273,6.99e-05]
[1672860253909,56.54,13.276,13.273,6.99e-05]
[1672860254129,30.0,13.275,13.273,6.99e-05]
[1672860254971,16.30456384,13.274,13.273,6.99e-05]
[1672860255192,72.85456384,13.274,13.273,6.99e-05]
[1672860255595,86.55,13.274,13.273,6.99e-05]
[1672860255814,114.34182306,13.274,13.273,6.99e-05]
[1672860256125,152.65800434,13.274,13.273,6.99e-05]
[1672860256351,136.3534405,13.274,13.273,6.99e-05]
[1672860257278,152.65800434,13.274,13.273,6.99e-05]
[1672860257506,136.3534405,13.274,13.273,6.99e-05]
[1672860258163,86.55,13.274,13.273,6.99e-05]
[1672860258346,136.3534405,13.274,13.273,6.99e-05]
[1672860258568,152.65800434,13.274,13.273,6.99e-05]
[1672860259631,172.65800434,13.274,13.273,6.99e-05]
[1672860260240,0.0599301,13.271,13.247,56.66]
[1672860260469,0.0599301,13.271,13.247,119.9825]
[1672860260470,115.54,13.26,13.247,119.9825]
[1672860260850,115.54,13.26,13.248,56.66]
[1672860261065,30.0,13.259,13.247,119.9825]
[1672860261207,115.54,13.26,13.248,56.66]
[1672860261419,30.0,13.259,13.248,56.66]
[1672860262104,30.0,13.259,13.247,119.9825]
[1672860264837,20.0,13.258,13.247,119.9825]
[1672860264987,30.0,13.257,13.247,119.9825]
[1672860268476,20.0,13.256,13.247,119.9825]
[1672860270560,115.54,13.26,13.247,119.9825]
[1672860270759,20.0,13.258,13.247,119.9825]
[1672860271166,20.0,13.258,13.248,56.66]
[1672860271388,22.91,13.26,13.248,56.66]
[1672860271591,20.0,13.259,13.248,56.66]
[1672860272469,22.91,13.26,13.248,56.66]
[1672860272635,22.91,13.26,13.247,119.9825]
[1672860272636,115.65,13.27,13.254,56.63]
[1672860272889,23.13,13.27,13.255,30.0]
[1672860273178,79.69,13.27,13.255,30.0]
[1672860273382,79.69,13.27,13.256,56.62]
[1672860273595,79.69,13.27,13.255,86.63]
[1672860274019,23.13,13.27,13.255,86.63]
[1672860274763,23.13,13.27,13.255,108.4111836]
[1672860275077,23.13,13.27,13.255,86.63]
[1672860276435,20.0,13.269,13.255,86.63]
[1672860276646,36.30456384,13.269,13.255,86.63]
[1672860276866,20.0,13.269,13.255,86.63]
[1672860277096,36.30456384,13.269,13.255,86.63]
[1672860277273,36.30456384,13.269,13.255,56.63]
[1672860278122,20.0,13.269,13.255,56.63]
[1672860278447,20.0,13.269,13.255,78.4111836]
[1672860278634,20.0,13.268,13.255,56.63]
[1672860278840,30.0599301,13.271,13.256,30.0]
[1672860279046,23.13,13.27,13.257,56.62]
[1672860279290,43.13,13.27,13.257,56.62]
[1672860279697,99.69,13.27,13.256,30.0]
[1672860279903,30.0,13.269,13.256,30.0]
[1672860280093,30.0,13.269,13.255,86.63]
[1672860280094,16.30456384,13.269,13.255,56.63]
[1672860280309,16.30456384,13.269,13.254,113.758]
[1672860280544,30.0,13.267,13.254,170.388]
[1672860280944,16.30456384,13.266,13.255,30.0]
[1672860283587,56.57,13.269,13.255,30.0]
[1672860283802,0.0599301,13.271,13.255,30.0]
[1672860283999,0.0599301,13.271,13.256,56.62]
[1672860284315,0.0599301,13.271,13.257,30.0]
[1672860284626,0.0599301,13.271,13.258,56.62]
[1672860284830,0.0599301,13.271,13.259,30.0]
[1672860285060,0.0599301,13.271,13.26,56.61]
[1672860285352,0.0599301,13.271,13.261,115.3803]
[1672860285567,0.0599301,13.271,13.262,86.6]
[1672860286408,56.53,13.279,13.263,30.0]
[1672860286615,56.53,13.279,13.264,56.59]
[1672860286836,56.53,13.279,13.265,30.0]
[1672860287236,80.0,13.28,13.265,30.0]
[1672860287454,76.53,13.279,13.266,56.58]
[1672860287774,30.0,13.278,13.266,56.58]
[1672860287989,30.0,13.278,13.265,30.0]
[1672860288174,56.53,13.277,13.265,30.0]
[1672860288389,56.53,13.277,13.263,30.0]
[1672860288390,30.0,13.276,13.263,30.0]
[1672860288810,56.53,13.277,13.263,30.0]
[1672860289131,56.53,13.277,13.262,86.6]
[1672860289963,56.53,13.278,13.262,86.6]
[1672860290603,76.53,13.279,13.262,86.6]
[1672860292703,30.0,13.278,13.262,86.6]
[1672860292917,56.53,13.277,13.262,30.0]
[1672860293233,46.30456384,13.276,13.261,115.3803]
[1672860293554,30.0,13.274,13.261,115.3803]
[1672860293763,56.55,13.273,13.261,115.3803]
[1672860294077,30.0,13.272,13.261,115.3803]
[1672860294281,56.56,13.271,13.261,115.3803]
[1672860294479,30.0,13.272,13.261,115.3803]
[1672860294705,56.55,13.273,13.262,30.0]
[1672860294899,56.54,13.275,13.262,30.0]
[1672860295106,56.53,13.277,13.262,30.0]
[1672860295313,103.1,13.28,13.262,30.0]
[1672860295314,30.0,13.278,13.264,30.0]
[1672860295530,56.53,13.277,13.265,114.9665]
[1672860295735,56.53,13.277,13.266,30.0]
[1672860295950,56.53,13.278,13.266,30.0]
[1672860296160,56.53,13.278,13.267,117.9027]
[1672860296380,56.53,13.279,13.267,117.9027]
[1672860296590,20.0,13.278,13.268,30.0]
[1672860296798,56.53,13.277,13.268,30.0]
[1672860298072,20.0,13.278,13.268,30.0]
[1672860298801,56.53,13.279,13.268,30.0]
[1672860299013,20.0,13.278,13.268,30.0]
[1672860299639,20.0,13.278,13.267,117.9027]
[1672860300598,20.0,13.278,13.268,30.0]
[1672860301220,77.5,13.28,13.268,30.0]
[1672860301423,56.53,13.279,13.268,30.0]
[1672860304906,20.0,13.278,13.268,30.0]
[1672860305522,20.0,13.278,13.267,117.9027]
[1672860305732,56.53,13.277,13.267,117.9027]
[1672860306358,56.53,13.277,13.268,30.0]
[1672860306572,56.53,13.277,13.267,117.9027]
[1672860308786,56.53,13.277,13.268,30.0]
[1672860309019,20.0,13.278,13.268,30.0]
[1672860309536,20.0,13.278,13.267,117.9027]
[1672860310492,30.0,13.276,13.267,117.9027]
[1672860310676,56.54,13.275,13.267,117.9027]
[1672860311098,56.53,13.277,13.267,117.9027]
[1672860313104,56.53,13.277,13.265,114.9665]
[1672860313317,56.53,13.277,13.261,56.6]
[1672860313530,25.71,13.27,13.258,108.539]
[1672860313722,56.57,13.269,13.258,108.539]
[1672860314155,30.0,13.268,13.256,109.5584]
[1672860314370,30.0,13.266,13.256,109.5584]
[1672860314776,56.58,13.267,13.256,109.5584]
[1672860315410,30.0,13.266,13.252,56.64]
[1672860315629,30.0,13.266,13.253,121.5841134]
[1672860315828,25.71,13.26,13.253,12.0257134]
[1672860316254,101.87894537,13.259,13.253,12.0257134]
[1672860316468,30.0,13.258,13.253,12.0257134]
[1672860316893,45.26894537,13.259,13.253,12.0257134]
[1672860318260,82.32,13.26,13.253,12.0257134]
[1672860318466,25.71,13.26,13.253,12.0257134]
[1672860319737,82.32,13.26,13.253,12.0257134]
[1672860320574,20.0,13.259,13.253,12.0257134]
[1672860320891,56.62,13.258,13.253,12.0257134]
[1672860321110,30.0,13.257,13.24,116.8096]
[1672860321421,56.62,13.256,13.241,56.69]
[1672860321639,30.0,13.257,13.24,116.8096]
[1672860321844,56.62,13.256,13.241,56.69]
[1672860322465,30.0,13.255,13.241,56.69]
[1672860322893,30.0,13.255,13.242,30.0]
[1672860323107,30.0,13.255,13.243,56.68]
[1672860323631,30.0,13.257,13.242,86.68]
[1672860323820,25.71,13.26,13.242,86.68]
[1672860324040,25.71,13.26,13.243,20.0]
[1672860324357,25.71,13.26,13.245,30.0]
[1672860324569,25.71,13.26,13.246,171.4259]
[1672860324774,25.71,13.26,13.241,30.0]
[1672860324775,30.0,13.258,13.243,56.68]
[1672860324988,56.62,13.257,13.249,21.03307962]
[1672860325422,30.0,13.256,13.249,21.03307962]
[1672860326349,30.0,13.254,13.249,21.03307962]
[1672860326554,56.64,13.253,13.249,21.03307962]
[1672860326972,30.0,13.252,13.249,21.03307962]
[1672860327624,30.0,13.254,13.249,21.03307962]
[1672860327813,75.60877383,13.256,13.249,21.03307962]
[1672860327814,45.60877383,13.256,13.249,21.03307962]
[1672860328026,56.62,13.257,13.249,21.03307962]
[1672860328237,30.0,13.256,13.249,21.03307962]
[1672860328863,56.62,13.257,13.249,21.03307962]
[1672860329308,86.62,13.258,13.249,21.03307962]
[1672860329501,30.0,13.258,13.249,21.03307962]
[1672860329926,56.61,13.259,13.249,21.03307962]
[1672860331401,20.0,13.258,13.249,21.03307962]
[1672860331720,56.62,13.257,13.249,21.03307962]
[1672860333724,30.0,13.256,13.249,21.03307962]
[1672860334340,56.63,13.255,13.249,21.03307962]
[1672860334552,72.93456384,13.255,13.238,68.5290266]
[1672860334765,25.71,13.25,13.238,68.5290266]
[1672860334981,56.65,13.249,13.238,68.5290266]
[1672860335192,30.0,13.248,13.238,68.5290266]
[1672860335402,56.66,13.247,13.238,68.5290266]
[1672860335604,30.0,13.246,13.23,108.8696746]
[1672860335938,56.67,13.245,13.23,78.6245296]
[1672860336148,30.0,13.244,13.23,78.6245296]
[1672860336336,25.87,13.24,13.23,78.6245296]
[1672860336548,56.7,13.239,13.23,78.6245296]
[1672860336766,25.87,13.24,13.23,78.6245296]
[1672860337298,30.0,13.242,13.23,78.6245296]
[1672860337497,25.87,13.24,13.23,78.6245296]
[1672860337827,16.31098918,13.239,13.23,78.6245296]
[1672860338038,56.7,13.238,13.23,78.6245296]
[1672860338250,30.0,13.237,13.23,78.6245296]
[1672860338444,46.31098918,13.237,13.23,78.6245296]
[1672860338648,16.31098918,13.236,13.23,78.6245296]
[1672860339184,30.0,13.235,13.23,78.6245296]
[1672860339610,46.31098918,13.235,13.23,78.6245296]
[1672860339816,20.0,13.238,13.23,78.6245296]
[1672860340023,16.9493903,13.237,13.23,78.6245296]
[1672860340236,46.9493903,13.237,13.23,78.6245296]
[1672860341714,30.0,13.237,13.23,78.6245296]
[1672860341926,20.0,13.238,13.23,78.6245296]
[1672860342325,25.87,13.24,13.23,78.6245296]
[1672860342850,56.67,13.245,13.231,56.73]
[1672860343069,56.66,13.247,13.232,30.0]
[1672860343292,74.04622649,13.248,13.232,30.0]
[1672860343511,17.38622649,13.246,13.233,110.3491]
[1672860343722,30.0,13.244,13.231,56.73]
[1672860344132,17.38622649,13.243,13.231,56.73]
[1672860344547,17.38622649,13.243,13.231,171.4487]
[1672860344878,17.38622649,13.243,13.232,30.0]
[1672860345301,17.38622649,13.243,13.231,171.4487]
[1672860345837,17.38622649,13.243,13.231,114.7187]
[1672860346009,17.38622649,13.243,13.232,86.73]
[1672860347066,137.56727235,13.249,13.232,86.73]
[1672860347271,17.38622649,13.246,13.232,86.73]
[1672860347478,17.38622649,13.246,13.232,56.73]
[1672860349916,30.0,13.245,13.232,56.73]
[1672860350337,74.06622649,13.244,13.231,171.4487]
[1672860350551,17.38622649,13.244,13.231,171.4487]
[1672860350879,17.38622649,13.243,13.231,171.4487]
[1672860351054,17.38622649,13.243,13.231,114.7187]
[1672860352733,25.61,13.24,13.23,188.5724296]
[1672860352957,30.0,13.238,13.23,78.6245296]
[1672860353384,17.38622649,13.237,13.23,78.6245296]
[1672860353572,56.71,13.236,13.23,78.6245296]
[1672860354007,30.0,13.234,13.23,78.6245296]
[1672860354220,86.72,13.234,13.23,78.6245296]
[1672860354425,17.38622649,13.233,13.23,78.6245296]
[1672860355289,86.72,13.234,13.23,78.6245296]
[1672860355500,17.38622649,13.233,13.23,78.6245296]
[1672860357162,30.0,13.232,13.23,78.6245296]
[1672860357605,17.38622649,13.231,13.23,78.6245296]
[1672860360857,56.73,13.231,13.23,78.6245296]
[1672860361067,17.38622649,13.236,13.23,78.6245296]
[1672860361279,43.68461012,13.237,13.23,78.6245296]
[1672860361590,17.38622649,13.232,13.23,78.6245296]
[1672860363583,43.68461012,13.237,13.23,78.6245296]
[1672860364104,61.07083661,13.237,13.23,78.6245296]
[1672860364858,282.01,13.236,13.23,0.0020296]
[1672860365051,30.0,13.235,13.223,164.0774329]
[1672860365265,25.61,13.23,13.223,164.0774329]
[1672860365479,25.61,13.23,13.21,1.19583916]
[1672860365480,30.0,13.228,13.21,1.19583916]
[1672860365697,105.77608771,13.218,13.21,1.19583916]
[1672860365890,30.0,13.216,13.21,1.19583916]
[1672860366120,30.0,13.214,13.203,10.44716545]
[1672860366325,25.61,13.21,13.203,10.44716545]
[1672860366532,56.83,13.209,13.203,10.44716545]
[1672860366959,47.38622649,13.208,13.203,10.44716545]
[1672860367165,56.83,13.207,13.203,0.00716545]
[1672860367381,83.09424677,13.207,13.203,0.00716545]
[1672860367584,63.89117538,13.206,13.203,0.00716545]
[1672860367809,30.0,13.204,13.203,0.00716545]
[1672860368020,86.85,13.204,13.203,0.00716545]
[1672860368233,74.23622649,13.204,13.203,0.00716545]
[1672860368447,17.38622649,13.204,13.203,0.00716545]
[1672860368637,56.83,13.209,13.203,0.00716545]
[1672860368856,46.50494889,13.208,13.203,0.00716545]
[1672860369179,25.87,13.22,13.204,56.85]
[1672860369392,17.38622649,13.213,13.204,56.85]
[1672860369583,17.38622649,13.213,13.203,0.00716545]
[1672860369795,30.0,13.214,13.203,0.00716545]
[1672860370016,30.0,13.214,13.204,56.85]
[1672860370216,47.38622649,13.214,13.204,56.85]
[1672860370632,25.61,13.21,13.203,0.00716545]
[1672860370836,30.0,13.208,13.203,0.00716545]
[1672860371285,47.38622649,13.208,13.203,0.00716545]
[1672860371784,30.0,13.206,13.203,0.00716545]
[1672860372202,17.38622649,13.205,13.203,0.00716545]
[1672860372420,30.0,13.206,13.203,0.00716545]
[1672860373046,20.0,13.207,13.203,0.00716545]
[1672860373255,25.61,13.21,13.203,0.00716545]
[1672860373583,17.38622649,13.214,13.203,0.00716545]
[1672860373796,17.38622649,13.214,13.204,56.85]
[1672860374862,17.38622649,13.214,13.203,0.00716545]
[1672860375257,30.0,13.218,13.203,0.00716545]
[1672860375587,17.38622649,13.217,13.204,56.85]
[1672860375797,25.87,13.22,13.206,30.0]
[1672860376019,16.90852897,13.219,13.207,56.83]
[1672860376744,16.90852897,13.219,13.208,30.0]
[1672860376942,16.90852897,13.219,13.209,56.83]
[1672860377150,30.0,13.226,13.209,56.83]
[1672860377370,56.75,13.227,13.209,56.83]
[1672860377371,16.90852897,13.225,13.209,56.83]
[1672860377581,56.74,13.229,13.209,56.83]
[1672860377796,30.0,13.229,13.21,30.0]
[1672860378012,16.90852897,13.226,13.212,30.0]
[1672860378215,86.74,13.229,13.213,176.7431]
[1672860378430,16.90852897,13.228,13.213,176.7431]
[1672860378758,16.90852897,13.228,13.214,30.0]
[1672860378965,16.90852897,13.228,13.215,56.8]
[1672860379364,16.90852897,13.228,13.214,86.8]
[1672860380226,20.0,13.227,13.214,86.8]
[1672860380845,25.61,13.23,13.214,86.8]
[1672860381160,20.0,13.229,13.214,86.8]
[1672860381361,73.62852897,13.234,13.214,86.8]
[1672860381574,16.90852897,13.234,13.215,20.0]
[1672860381796,16.90852897,13.234,13.216,86.8]
[1672860381996,16.90852897,13.234,13.216,196.7279]
[1672860382417,56.7,13.239,13.216,196.7279]
[1672860382627,25.87,13.24,13.221,30.0]
[1672860382628,42.77852897,13.24,13.221,30.0]
[1672860382848,42.77852897,13.24,13.222,173.3802]
[1672860383058,16.90852897,13.24,13.223,20.0]
[1672860383379,16.90852897,13.24,13.224,56.76]
[1672860383565,42.51852897,13.24,13.225,20.0]
[1672860383780,42.51852897,13.24,13.226,86.75]
[1672860384208,42.51852897,13.24,13.226,56.75]
[1672860384428,56.7,13.239,13.223,166.6979]
[1672860384757,46.90852897,13.238,13.223,166.6979]
[1672860384937,56.71,13.237,13.223,166.6979]
[1672860385144,73.61852897,13.237,13.223,166.6979]
[1672860385354,16.90852897,13.236,13.223,166.6979]
[1672860385581,16.90852897,13.236,13.224,30.0]
[1672860385993,30.0,13.238,13.225,56.76]
[1672860386199,16.90852897,13.237,13.224,86.76]
[1672860386413,73.61852897,13.237,13.224,86.76]
[1672860386832,16.90852897,13.236,13.224,86.76]
[1672860387247,56.7,13.239,13.224,86.76]
[1672860387461,56.7,13.239,13.224,56.76]
[1672860387683,30.0,13.237,13.223,109.9279]
[1672860387882,56.71,13.236,13.223,109.9279]
[1672860388092,73.61852897,13.236,13.223,109.9279]
[1672860388314,16.90852897,13.235,13.223,109.9279]
[1672860388545,30.0,13.234,13.223,109.9279]
[1672860388971,16.90852897,13.233,13.223,109.9279]
[1672860391168,73.62852897,13.233,13.223,109.9279]
[1672860391593,16.90852897,13.232,13.223,109.9279]
[1672860391781,30.0,13.235,13.223,109.9279]
[1672860392199,30.0,13.238,13.223,109.9279]
[1672860392435,16.90852897,13.234,13.224,56.76]
[1672860392634,56.71,13.237,13.225,30.0]
[1672860392846,16.90852897,13.237,13.225,30.0]
[1672860393060,16.90852897,13.237,13.223,166.6979]
[1672860393259,56.7,13.239,13.223,166.6979]
[1672860393471,56.7,13.239,13.224,30.0]
[1672860393696,16.90852897,13.238,13.224,30.0]
[1672860393898,56.71,13.237,13.224,30.0]
[1672860394431,16.90852897,13.238,13.224,30.0]
[1672860394627,56.71,13.237,13.224,30.0]
[1672860394835,56.71,13.237,13.223,166.6979]
[1672860395062,56.71,13.237,13.224,30.0]
[1672860395465,73.61852897,13.237,13.224,30.0]
[1672860395681,16.90852897,13.237,13.224,30.0]
[1672860395885,16.90852897,13.237,13.223,166.6979]
[1672860396311,56.71,13.236,13.223,109.9279]
[1672860396518,30.0,13.235,13.223,109.9279]
[1672860396731,46.90852897,13.235,13.223,109.9279]
[1672860396947,16.90852897,13.234,13.223,109.9279]
[1672860397464,56.72,13.233,13.223,109.9279]
[1672860397674,73.62852897,13.234,13.223,109.9279]
[1672860397889,16.90852897,13.232,13.223,109.9279]
[1672860398508,56.71,13.237,13.224,30.0]
[1672860398720,56.7,13.239,13.224,30.0]
[1672860399037,16.90852897,13.236,13.224,86.76]
[1672860399454,16.90852897,13.236,13.223,166.6979]
[1672860399664,16.90852897,13.236,13.223,109.9279]
[1672860399893,56.71,13.235,13.223,109.9279]
[1672860400108,16.90852897,13.236,13.223,166.6979]
[1672860400417,16.90852897,13.234,13.223,109.9279]
[1672860400953,16.90852897,13.234,13.222,116.6102]
[1672860401144,56.72,13.233,13.222,116.6102]
[1672860401569,16.90852897,13.232,13.222,116.6102]
[1672860402314,65.69778889,13.236,13.222,116.6102]
[1672860402315,16.90852897,13.234,13.222,116.6102]
[1672860403131,16.90852897,13.234,13.224,30.0]
[1672860403339,16.90852897,13.234,13.223,111.2205]
[1672860404828,16.90852897,13.236,13.223,111.2205]
[1672860405357,56.71,13.235,13.223,111.2205]
[1672860405574,30.0,13.234,13.223,111.2205]
[1672860405764,46.90852897,13.234,13.223,111.2205]
[1672860405970,16.90852897,13.233,13.223,111.2205]
[1672860407663,56.71,13.235,13.223,111.2205]
[1672860408284,16.90852897,13.235,13.223,111.2205]
[1672860408499,30.0,13.236,13.223,111.2205]
[1672860408927,73.61852897,13.235,13.217,56.79]
[1672860409133,16.19,13.23,13.213,113.1274]
[1672860409341,30.0,13.228,13.213,113.1274]
[1672860409553,56.75,13.227,13.213,113.1274]
[1672860409761,73.65852897,13.227,13.213,113.1274]
[1672860410302,30.0,13.225,13.213,113.1274]
[1672860410705,16.90852897,13.224,13.213,113.1274]
[1672860412387,16.90852897,13.224,13.21,56.82]
[1672860412596,16.90852897,13.224,13.21,119.113]
[1672860412806,16.90852897,13.224,13.211,56.82]
[1672860413025,16.90852897,13.224,13.212,30.0]
[1672860413659,16.90852897,13.224,13.211,56.82]
[1672860413869,16.90852897,13.224,13.21,175.933]
[1672860414510,16.90852897,13.225,13.211,30.0]
[1672860414700,16.90852897,13.225,13.212,56.81]
[1672860414902,16.90852897,13.225,13.211,30.0]
[1672860414903,16.90852897,13.225,13.211,86.82]
[1672860415117,16.90852897,13.225,13.211,30.0]
[1672860415330,30.0,13.228,13.213,30.0]
[1672860415545,16.90852897,13.227,13.214,56.8]
[1672860415753,16.90852897,13.227,13.212,56.81]
[1672860415964,30.0,13.226,13.212,56.81]
[1672860416172,30.0,13.226,13.21,119.113]
[1672860416173,30.0,13.226,13.211,56.82]
[1672860416396,46.90852897,13.226,13.212,30.0]
[1672860417222,16.90852897,13.226,13.212,30.0]
[1672860417446,86.74,13.228,13.213,56.81]
[1672860417660,16.90852897,13.226,13.212,86.81]
[1672860418284,16.90852897,13.226,13.212,56.81]
[1672860418924,56.74,13.228,13.212,56.81]
[1672860419135,20.0,13.227,13.213,30.0]
[1672860419346,23.38,13.23,13.215,30.0]
[1672860419660,80.12,13.23,13.216,56.8]
[1672860420061,30.0,13.228,13.214,56.8]
[1672860420496,16.90852897,13.227,13.214,56.8]
[1672860420690,56.75,13.226,13.211,56.82]
[1672860420902,30.0,13.225,13.211,56.82]
[1672860421111,46.90852897,13.225,13.211,56.82]
[1672860421741,103.66852897,13.225,13.211,56.82]
[1672860422372,16.90852897,13.225,13.211,56.82]
[1672860422599,73.66852897,13.225,13.211,56.82]
[1672860423124,73.66852897,13.225,13.21,119.113]
[1672860423336,30.0,13.224,13.21,119.113]
[1672860423526,30.0,13.224,13.21,175.933]
[1672860423946,30.0,13.224,13.2,53.36]
[1672860423947,23.46,13.22,13.205,56.84]
[1672860424169,30.0,13.218,13.204,108.7726]
[1672860424477,56.79,13.217,13.204,108.7726]
[1672860424685,73.69852897,13.217,13.204,108.7726]
[1672860425009,46.90852897,13.216,13.204,108.7726]